fUST/lending_fUST_20250711
["ID","MTS","AMOUNT","RATE_DAILY","PERIOD"]
[370927242,1752163849115,-460.0,0.00016712,2]
[370927243,1752163849125,-460.0,0.00016712,2]
[370927244,1752163849136,-460.0,0.00016712,2]
[370927245,1752163849146,-1191.66,0.00016712,2]
[370927246,1752163849157,-460.0,0.00016712,2]
[370927247,1752163849167,-460.0,0.00016712,2]
[370927248,1752163849178,-877.76,0.00016712,2]
[370927249,1752163849188,-2454.63,0.00016712,2]
[370927250,1752163849198,-460.0,0.00016712,2]
[370927251,1752163849209,-460.0,0.00016712,2]
[370927252,1752163849218,-460.0,0.00016712,2]
[370927253,1752163849229,-460.0,0.00016712,2]
[370927254,1752163849239,-460.0,0.00016712,2]
[370927255,1752163849249,-460.0,0.00016712,2]
[370927256,1752163849259,-482.61461814,0.00016712,2]
[370927257,1752163849269,-460.0,0.00016712,2]
[370927258,1752163849279,-460.0,0.00016712,2]
[370927259,1752163849289,-460.0,0.00016712,2]
[370927260,1752163849300,-1582.94,0.00016712,2]
[370927261,1752163849310,-439.21,0.00016712,2]
[370927262,1752163849319,-460.0,0.00016712,2]
[370927263,1752163849330,-460.0,0.00016712,2]
[370927264,1752163849340,-892.73,0.00016712,2]
[370927265,1752163849350,-460.0,0.00016712,2]
[370927266,1752163849360,-460.0,0.00016712,2]
[370927267,1752163849370,-460.0,0.00016712,2]
[370927268,1752163849380,-1107.97,0.00016712,2]
[370927269,1752163849392,-460.0,0.00016712,2]
[370927270,1752163849401,-1087.41,0.00016712,2]
[370927271,1752163849411,-3198.07,0.00016712,2]
[370927272,1752163849421,-463.96404651,0.00016712,2]
[370927273,1752163849431,-460.0,0.00016712,2]
[370927274,1752163849441,-460.0,0.00016712,2]
[370927275,1752163849451,-460.0,0.00016712,2]
[370927276,1752163849461,-543.38,0.00016712,2]
[370927277,1752163849471,-460.0,0.00016712,2]
[370927278,1752163849482,-460.0,0.00016712,2]
[370927279,1752163849492,-4159.47,0.00016712,2]
[370927280,1752163849502,-460.0,0.00016712,2]
[370927281,1752163849512,-275.0430215,0.00016712,2]
[370927282,1752163849522,-460.0,0.00016712,2]
[370927283,1752163849531,-460.0,0.00016712,2]
[370927284,1752163849542,-502.46967035,0.00016712,2]
[370927285,1752163849551,-460.0,0.00016712,2]
[370927286,1752163849562,-525.83417949,0.00016712,2]
[370927287,1752163849571,-460.0,0.00016712,2]
[370927288,1752163849581,-7228.32,0.00016712,2]
[370927289,1752163849591,-365.16368993,0.00016712,2]
[370927290,1752163849600,-460.0,0.00016712,2]
[370927291,1752163849610,-472.94,0.00016712,2]
[370927292,1752163849620,-460.0,0.00016712,2]
[370927293,1752163849630,-2373.15,0.00016712,2]
[370927294,1752163849639,-460.0,0.00016712,2]
[370927295,1752163849649,-460.0,0.00016712,2]
[370927296,1752163849659,-3970.33,0.00016712,2]
[370927297,1752163849669,-484.23,0.00016712,2]
[370927298,1752163849678,-460.0,0.00016712,2]
[370927299,1752163849689,-714.23,0.00016712,2]
[370927300,1752163849698,-460.0,0.00016712,2]
[370927301,1752163849708,-460.0,0.00016712,2]
[370927302,1752163849718,-465.93908477,0.00016712,2]
[370927303,1752163849728,-448.83137158,0.00016712,2]
[370927304,1752163849738,-460.0,0.00016712,2]
[370927305,1752163849748,-460.0,0.00016712,2]
[370927306,1752163849758,-460.0,0.00016712,2]
[370927307,1752163849768,-1153.4,0.00016712,2]
[370927308,1752163849785,-705.1,0.00016712,2]
[370927309,1752163849797,-1222.8,0.00016712,2]
[370927310,1752163849807,-460.0,0.00016712,2]
[370927311,1752163849817,-907.6,0.00016712,2]
[370927312,1752163849829,-460.0,0.00016712,2]
[370927313,1752163849839,-460.0,0.00016712,2]
[370927314,1752163849848,-2157.69,0.00016712,2]
[370927315,1752163849859,-460.0,0.00016712,2]
[370927316,1752163849870,-460.0,0.00016712,2]
[370927317,1752163849879,-460.0,0.00016712,2]
[370927318,1752163849889,-460.0,0.00016712,2]
[370927319,1752163849899,-460.0,0.00016712,2]
[370927320,1752163849909,-3308.31,0.00016712,2]
[370927321,1752163849918,-460.0,0.00016712,2]
[370927322,1752163849928,-460.0,0.00016712,2]
[370927323,1752163849938,-460.0,0.00016712,2]
[370927324,1752163849948,-460.0,0.00016712,2]
[370927325,1752163849957,-2698.23,0.00016712,2]
[370927326,1752163849967,-460.0,0.00016712,2]
[370927327,1752163849980,-1109.05,0.00016712,2]
[370927328,1752163849990,-460.0,0.00016712,2]
[370927329,1752163849999,-460.0,0.00016712,2]
[370927330,1752163850009,-460.0,0.00016712,2]
[370927331,1752163850019,-460.0,0.00016712,2]
[370927332,1752163850029,-460.0,0.00016712,2]
[370927333,1752163850039,-460.0,0.00016712,2]
[370927334,1752163850049,-792.04,0.00016712,2]
[370927335,1752163850059,-3387.71,0.00016712,2]
[370927336,1752163850069,-460.0,0.00016712,2]
[370927337,1752163850079,-460.0,0.00016712,2]
[370927338,1752163850089,-460.0,0.00016712,2]
[370927339,1752163850099,-1036.05,0.00016712,2]
[370927340,1752163850109,-1958.35,0.00016712,2]
[370927341,1752163850119,-460.0,0.00016712,2]
[370927342,1752163850128,-460.0,0.00016712,2]
[370927343,1752163850138,-750.15,0.00016712,2]
[370927344,1752163850148,-883.25,0.00016712,2]
[370927345,1752163850157,-460.0,0.00016712,2]
[370927346,1752163850167,-499.09368782,0.00016712,2]
[370927347,1752163850177,-460.0,0.00016712,2]
[370927348,1752163850187,-460.0,0.00016712,2]
[370927349,1752163850197,-460.0,0.00016712,2]
[370927350,1752163850206,-644.42,0.00016712,2]
[370927351,1752163850217,-460.0,0.00016712,2]
[370927352,1752163850227,-809.8,0.00016712,2]
[370927353,1752163850237,-460.0,0.00016712,2]
[370927354,1752163850248,-609.2,0.00016712,2]
[370927355,1752163850258,-1416.66,0.00016712,2]
[370927356,1752163850267,-460.0,0.00016712,2]
[370927357,1752163850277,-172.34889884,0.00016712,2]
[370927358,1752163850288,-460.0,0.00016712,2]
[370927359,1752163850298,-460.0,0.00016712,2]
[370927360,1752163850308,-460.0,0.00016712,2]
[370927361,1752163850318,-1262.69,0.00016712,2]
[370927362,1752163850328,-1172.44,0.00016712,2]
[370927363,1752163850338,-469.55261241,0.00016712,2]
[370927364,1752163850347,-593.87,0.00016712,2]
[370927365,1752163850357,-251.74826946,0.00016749,2]
[370927366,1752163850368,-500.0,0.00016773,2]
[370927367,1752163850378,-500.0,0.00016773,2]
[370927368,1752163850393,-500.0,0.00016773,2]
[370927369,1752163850405,-500.0,0.00016773,2]
[370927370,1752163850415,-500.0,0.00016773,2]
[370927371,1752163850426,-500.0,0.00016773,2]
[370927372,1752163850436,-603.52143687,0.00016773,2]
[370927373,1752163850446,-500.0,0.00016773,2]
[370927374,1752163850456,-500.0,0.00016773,2]
[370927375,1752163850467,-500.0,0.00016773,2]
[370927376,1752163850478,-500.0,0.00016773,2]
[370927377,1752163850488,-500.0,0.00016773,2]
[370927378,1752163850498,-15023.97236718,0.00016816,2]
[370927379,1752163850508,-719.94293681,0.0001685,2]
[370927380,1752163850518,-251.74826946,0.00016886,2]
[370927381,1752163850528,-166.666667,0.00016952,2]
[370927382,1752163850539,-542.58,0.00016986,2]
[370927383,1752163850549,-460.0,0.00016986,2]
[370927384,1752163850559,-460.0,0.00016986,2]
[370927385,1752163850568,-460.0,0.00016986,2]
[370927386,1752163850578,-460.0,0.00016986,2]
[370927387,1752163850588,-432.43565258,0.00016986,2]
[370927388,1752163850597,-460.0,0.00016986,2]
[370927389,1752163850607,-460.0,0.00016986,2]
[370927390,1752163850617,-460.0,0.00016986,2]
[370927391,1752163850626,-460.0,0.00016986,2]
[370927392,1752163850636,-460.0,0.00016986,2]
[370927393,1752163850646,-460.0,0.00016986,2]
[370927394,1752163850655,-460.0,0.00016986,2]
[370927395,1752163850665,-460.0,0.00016986,2]
[370927396,1752163850675,-460.0,0.00016986,2]
[370927397,1752163850685,-460.0,0.00016986,2]
[370927398,1752163850694,-460.0,0.00016986,2]
[370927399,1752163850704,-460.0,0.00016986,2]
[370927400,1752163850714,-550.21841317,0.00016986,2]
[370927401,1752163850723,-465.95250951,0.00016986,2]
[370927402,1752163850733,-460.0,0.00016986,2]
[370927403,1752163850743,-460.0,0.00016986,2]
[370927404,1752163850753,-473.43645387,0.00016986,2]
[370927405,1752163850763,-460.0,0.00016986,2]
[370927406,1752163850774,-460.0,0.00016986,2]
[370927407,1752163850785,-460.0,0.00016986,2]
[370927408,1752163850796,-460.0,0.00016986,2]
[370927409,1752163850806,-460.0,0.00016986,2]
[370927410,1752163850815,-460.0,0.00016986,2]
[370927411,1752163850826,-460.0,0.00016986,2]
[370927412,1752163850836,-460.0,0.00016986,2]
[370927413,1752163850846,-460.0,0.00016986,2]
[370927414,1752163850860,-460.0,0.00016986,2]
[370927415,1752163850870,-460.0,0.00016986,2]
[370927416,1752163851028,-460.0,0.00016986,2]
[370927417,1752163851038,-460.0,0.00016986,2]
[370927418,1752163851047,-460.0,0.00016986,2]
[370927419,1752163851056,-182.61074928,0.00016986,2]
[370927420,1752163851066,-460.0,0.00016986,2]
[370927421,1752163851075,-462.0153564,0.00016986,2]
[370927422,1752163851085,-460.0,0.00016986,2]
[370927423,1752163851095,-462.09673237,0.00016986,2]
[370927424,1752163851105,-460.0,0.00016986,2]
[370927425,1752163851114,-460.0,0.00016986,2]
[370927426,1752163851124,-460.0,0.00016986,2]
[370927427,1752163851134,-460.0,0.00016986,2]
[370927428,1752163851143,-545.71,0.00016986,2]
[370927429,1752163851153,-460.0,0.00016986,2]
[370927430,1752163851163,-460.0,0.00016986,2]
[370927431,1752163851173,-460.0,0.00016986,2]
[370927432,1752163851183,-592.61,0.00016986,2]
[370927433,1752163851192,-460.0,0.00016986,2]
[370927434,1752163851204,-460.0,0.00016986,2]
[370927435,1752163851214,-372.59250816,0.00016986,2]
[370927436,1752163851223,-460.0,0.00016986,2]
[370927437,1752163851233,-460.0,0.00016986,2]
[370927438,1752163851242,-460.0,0.00016986,2]
[370927439,1752163851252,-527.10967869,0.00016986,2]
[370927440,1752163851261,-460.0,0.00016986,2]
[370927441,1752163851270,-591.97,0.00016986,2]
[370927442,1752163851280,-460.0,0.00016986,2]
[370927443,1752163851290,-460.0,0.00016986,2]
[370927444,1752163851300,-460.0,0.00016986,2]
[370927445,1752163851310,-563.25,0.00016986,2]
[370927446,1752163851319,-460.0,0.00016986,2]
[370927447,1752163851329,-483.27,0.00016986,2]
[370927448,1752163851339,-485.49930646,0.00016986,2]
[370927449,1752163851348,-939.57,0.00016986,2]
[370927450,1752163851357,-178.43120942,0.00016986,2]
[370927451,1752163851367,-460.0,0.00016986,2]
[370927452,1752163851377,-460.0,0.00016986,2]
[370927453,1752163851386,-460.0,0.00016986,2]
[370927454,1752163851396,-460.0,0.00016986,2]
[370927455,1752163851405,-460.0,0.00016986,2]
[370927456,1752163851414,-460.0,0.00016986,2]
[370927457,1752163851424,-460.0,0.00016986,2]
[370927458,1752163851433,-460.0,0.00016986,2]
[370927459,1752163851443,-460.0,0.00016986,2]
[370927460,1752163851452,-751.31,0.00016986,2]
[370927461,1752163851463,-932.08,0.00016986,2]
[370927462,1752163851473,-460.0,0.00016986,2]
[370927463,1752163851482,-576.58,0.00016986,2]
[370927464,1752163851491,-460.0,0.00016986,2]
[370927465,1752163851504,-444.45244042,0.00016986,2]
[370927466,1752163851513,-1148.05,0.00016986,2]
[370927467,1752163851523,-460.0,0.00016986,2]
[370927468,1752163851532,-464.46852934,0.00016986,2]
[370927469,1752163851541,-460.0,0.00016986,2]
[370927470,1752163851552,-534.18,0.00016986,2]
[370927471,1752163851562,-430.79122447,0.00016986,2]
[370927472,1752163851572,-460.0,0.00016986,2]
[370927473,1752163851587,-460.0,0.00016986,2]
[370927474,1752163851597,-1157.0,0.00016986,2]
[370927475,1752163851606,-460.0,0.00016986,2]
[370927476,1752163851622,-460.0,0.00016986,2]
[370927477,1752163851632,-460.0,0.00016986,2]
[370927478,1752163851641,-460.0,0.00016986,2]
[370927479,1752163851651,-460.0,0.00016986,2]
[370927480,1752163851660,-460.0,0.00016986,2]
[370927481,1752163851670,-460.0,0.00016986,2]
[370927482,1752163851679,-460.0,0.00016986,2]
[370927483,1752163851689,-460.0,0.00016986,2]
[370927484,1752163851699,-460.0,0.00016986,2]
[370927485,1752163851709,-460.0,0.00016986,2]
[370927486,1752163851718,-460.0,0.00016986,2]
[370927487,1752163851728,-460.0,0.00016986,2]
[370927488,1752163851737,-460.0,0.00016986,2]
[370927489,1752163851746,-460.0,0.00016986,2]
[370927490,1752163851756,-460.0,0.00016986,2]
[370927491,1752163851765,-460.0,0.00016986,2]
[370927492,1752163851775,-460.0,0.00016986,2]
[370927493,1752163851788,-460.0,0.00016986,2]
[370927494,1752163851798,-189.21167045,0.00016986,2]
[370927495,1752163851808,-460.0,0.00016986,2]
[370927496,1752163851817,-460.0,0.00016986,2]
[370927497,1752163851829,-460.0,0.00016986,2]
[370927498,1752163851839,-491.38,0.00016986,2]
[370927499,1752163851848,-460.0,0.00016986,2]
[370927500,1752163851857,-460.0,0.00016986,2]
[370927501,1752163851867,-346.65340171,0.00016986,2]
[370927502,1752163851877,-460.0,0.00016986,2]
[370927503,1752163851887,-460.0,0.00016986,2]
[370927504,1752163851896,-460.0,0.00016986,2]
[370927505,1752163851906,-460.0,0.00016986,2]
[370927506,1752163851915,-460.0,0.00016986,2]
[370927507,1752163851926,-460.0,0.00016986,2]
[370927508,1752163851936,-524.39,0.00016986,2]
[370927509,1752163851945,-460.0,0.00016986,2]
[370927510,1752163851955,-475.14779957,0.00016986,2]
[370927511,1752163851964,-599.58,0.00016986,2]
[370927512,1752163851974,-460.0,0.00016986,2]
[370927513,1752163851984,-460.0,0.00016986,2]
[370927514,1752163851993,-460.0,0.00016986,2]
[370927515,1752163852003,-460.0,0.00016986,2]
[370927516,1752163852013,-460.0,0.00016986,2]
[370927517,1752163852023,-460.0,0.00016986,2]
[370927518,1752163852033,-460.0,0.00016986,2]
[370927519,1752163852043,-362.0882062,0.00016986,2]
[370927520,1752163852053,-460.0,0.00016986,2]
[370927521,1752163852063,-460.0,0.00016986,2]
[370927522,1752163852072,-460.0,0.00016986,2]
[370927523,1752163852082,-460.0,0.00016986,2]
[370927524,1752163852092,-321.77122286,0.00016986,2]
[370927525,1752163852101,-460.0,0.00016986,2]
[370927526,1752163852110,-460.0,0.00016986,2]
[370927527,1752163852120,-215.35717595,0.00016986,2]
[370927528,1752163852129,-460.0,0.00016986,2]
[370927529,1752163852139,-1273.06,0.00016986,2]
[370927530,1752163852148,-601.49,0.00016986,2]
[370927531,1752163852157,-460.0,0.00016986,2]
[370927532,1752163852167,-530.55,0.00016986,2]
[370927533,1752163852176,-460.0,0.00016986,2]
[370927534,1752163852185,-460.0,0.00016986,2]
[370927535,1752163852195,-850.19,0.00016986,2]
[370927536,1752163852206,-460.0,0.00016986,2]
[370927537,1752163852216,-807.83,0.00016986,2]
[370927538,1752163852226,-5108.69,0.00016986,2]
[370927539,1752163852235,-460.0,0.00016986,2]
[370927540,1752163852244,-460.0,0.00016986,2]
[370927541,1752163852254,-455.58154844,0.00016986,2]
[370927542,1752163852263,-460.0,0.00016986,2]
[370927543,1752163852273,-460.0,0.00016986,2]
[370927544,1752163852283,-596.62,0.00016986,2]
[370927545,1752163852292,-460.0,0.00016986,2]
[370927546,1752163852303,-460.0,0.00016986,2]
[370927547,1752163852313,-835.96,0.00016986,2]
[370927548,1752163852322,-460.0,0.00016986,2]
[370927549,1752163852332,-2985.79,0.00016986,2]
[370927550,1752163852341,-460.0,0.00016986,2]
[370927551,1752163852351,-5546.51,0.00016986,2]
[370927552,1752163852360,-460.0,0.00016986,2]
[370927553,1752163852370,-4932.67,0.00016986,2]
[370927554,1752163852379,-460.0,0.00016986,2]
[370927555,1752163852389,-460.0,0.00016986,2]
[370927556,1752163852399,-2471.67,0.00016986,2]
[370927557,1752163852409,-460.0,0.00016986,2]
[370927558,1752163852418,-7340.06,0.00016986,2]
[370927559,1752163852427,-460.0,0.00016986,2]
[370927560,1752163852437,-460.0,0.00016986,2]
[370927561,1752163852446,-460.0,0.00016986,2]
[370927562,1752163852456,-1154.83,0.00016986,2]
[370927563,1752163852465,-460.0,0.00016986,2]
[370927564,1752163852475,-460.0,0.00016986,2]
[370927565,1752163852484,-1442.69,0.00016986,2]
[370927566,1752163852494,-498.97,0.00016986,2]
[370927567,1752163852505,-460.0,0.00016986,2]
[370927568,1752163852515,-502.36874615,0.00016986,2]
[370927569,1752163852524,-827.89,0.00016986,2]
[370927570,1752163852533,-560.59,0.00016986,2]
[370927571,1752163852543,-742.8,0.00016986,2]
[370927572,1752163852553,-460.0,0.00016986,2]
[370927573,1752163852564,-1680.4,0.00016986,2]
[370927574,1752163852574,-902.95,0.00016986,2]
[370927575,1752163852583,-460.0,0.00016986,2]
[370927576,1752163852593,-460.0,0.00016986,2]
[370927577,1752163852603,-460.0,0.00016986,2]
[370927578,1752163852613,-1191.66,0.00016986,2]
[370927579,1752163852622,-460.0,0.00016986,2]
[370927580,1752163852632,-460.0,0.00016986,2]
[370927581,1752163852642,-877.76,0.00016986,2]
[370927582,1752163852651,-2454.63,0.00016986,2]
[370927583,1752163852661,-460.0,0.00016986,2]
[370927584,1752163852671,-460.0,0.00016986,2]
[370927585,1752163852681,-460.0,0.00016986,2]
[370927586,1752163852690,-460.0,0.00016986,2]
[370927587,1752163852700,-460.0,0.00016986,2]
[370927588,1752163852710,-460.0,0.00016986,2]
[370927589,1752163852720,-460.0,0.00016986,2]
[370927590,1752163852729,-1582.94,0.00016986,2]
[370927591,1752163852739,-460.0,0.00016986,2]
[370927592,1752163852748,-460.0,0.00016986,2]
[370927593,1752163852758,-892.73,0.00016986,2]
[370927594,1752163852767,-460.0,0.00016986,2]
[370927595,1752163852779,-460.0,0.00016986,2]
[370927596,1752163852789,-263.13,0.00016986,2]
[370927597,1752163852800,-1107.97,0.00016986,2]
[370927598,1752163852810,-460.0,0.00016986,2]
[370927599,1752163852820,-1087.41,0.00016986,2]
[370927600,1752163852830,-3198.07,0.00016986,2]
[370927601,1752163852839,-460.0,0.00016986,2]
[370927602,1752163852848,-460.0,0.00016986,2]
[370927603,1752163852859,-543.38,0.00016986,2]
[370927604,1752163852868,-460.0,0.00016986,2]
[370927605,1752163852878,-460.0,0.00016986,2]
[370927606,1752163852887,-4159.47,0.00016986,2]
[370927607,1752163852897,-460.0,0.00016986,2]
[370927608,1752163852906,-460.0,0.00016986,2]
[370927609,1752163852915,-460.0,0.00016986,2]
[370927610,1752163852925,-460.0,0.00016986,2]
[370927611,1752163852934,-460.0,0.00016986,2]
[370927612,1752163852943,-7228.32,0.00016986,2]
[370927613,1752163852953,-472.94,0.00016986,2]
[370927614,1752163852962,-460.0,0.00016986,2]
[370927615,1752163852971,-2373.15,0.00016986,2]
[370927616,1752163852981,-460.0,0.00016986,2]
[370927617,1752163852990,-3970.33,0.00016986,2]
[370927618,1752163853000,-484.23,0.00016986,2]
[370927619,1752163853009,-460.0,0.00016986,2]
[370927620,1752163853019,-714.23,0.00016986,2]
[370927621,1752163853029,-460.0,0.00016986,2]
[370927622,1752163853038,-460.0,0.00016986,2]
[370927623,1752163853048,-460.0,0.00016986,2]
[370927624,1752163853058,-1153.4,0.00016986,2]
[370927625,1752163853068,-705.1,0.00016986,2]
[370927626,1752163853077,-1222.8,0.00016986,2]
[370927627,1752163853088,-460.0,0.00016986,2]
[370927628,1752163853098,-907.6,0.00016986,2]
[370927629,1752163853107,-460.0,0.00016986,2]
[370927630,1752163853117,-460.0,0.00016986,2]
[370927631,1752163853126,-460.0,0.00016986,2]
[370927632,1752163853136,-2157.69,0.00016986,2]
[370927633,1752163853146,-460.0,0.00016986,2]
[370927634,1752163853155,-460.0,0.00016986,2]
[370927635,1752163853168,-460.0,0.00016986,2]
[370927636,1752163853177,-460.0,0.00016986,2]
[370927637,1752163853187,-3308.31,0.00016986,2]
[370927638,1752163853198,-254.2608185,0.00016986,2]
[370927639,1752163853208,-460.0,0.00016986,2]
[370927640,1752163853218,-460.0,0.00016986,2]
[370927641,1752163853228,-460.0,0.00016986,2]
[370927642,1752163853238,-2698.23,0.00016986,2]
[370927643,1752163853248,-1109.05,0.00016986,2]
[370927644,1752163853258,-464.51,0.00016986,2]
[370927645,1752163853267,-460.0,0.00016986,2]
[370927646,1752163853276,-460.0,0.00016986,2]
[370927647,1752163853286,-460.0,0.00016986,2]
[370927648,1752163853295,-792.04,0.00016986,2]
[370927649,1752163853305,-3387.71,0.00016986,2]
[370927650,1752163853315,-460.0,0.00016986,2]
[370927651,1752163853325,-460.0,0.00016986,2]
[370927652,1752163853335,-1958.35,0.00016986,2]
[370927653,1752163853344,-1036.05,0.00016986,2]
[370927654,1752163853354,-750.15,0.00016986,2]
[370927655,1752163853363,-883.25,0.00016986,2]
[370927656,1752163853372,-370.00821656,0.00016986,2]
[370927657,1752163853382,-460.0,0.00016986,2]
[370927658,1752163853391,-460.0,0.00016986,2]
[370927659,1752163853400,-644.42,0.00016986,2]
[370927660,1752163853410,-460.0,0.00016986,2]
[370927661,1752163853419,-460.0,0.00016986,2]
[370927662,1752163853428,-809.8,0.00016986,2]
[370927663,1752163853439,-609.2,0.00016986,2]
[370927664,1752163853448,-1416.66,0.00016986,2]
[370927665,1752163853458,-460.0,0.00016986,2]
[370927666,1752163853467,-460.0,0.00016986,2]
[370927667,1752163853476,-460.0,0.00016986,2]
[370927668,1752163853486,-1262.69,0.00016986,2]
[370927669,1752163853495,-1172.44,0.00016986,2]
[370927670,1752163853505,-166.666667,0.00017092,2]
[370927671,1752163853514,-166.666667,0.00017232,2]
[370927672,1752163853524,-542.58,0.0001726,2]
[370927673,1752163853533,-360.60074929,0.0001726,2]
[370927674,1752163853542,-460.0,0.0001726,2]
[370927675,1752163853552,-460.0,0.0001726,2]
[370927676,1752163853562,-460.0,0.0001726,2]
[370927677,1752163853572,-460.0,0.0001726,2]
[370927678,1752163853580,-460.0,0.0001726,2]
[370927679,1752163853590,-460.0,0.0001726,2]
[370927680,1752163853599,-460.0,0.0001726,2]
[370927681,1752163853608,-460.0,0.0001726,2]
[370927682,1752163853617,-460.0,0.0001726,2]
[370927683,1752163853627,-460.0,0.0001726,2]
[370927684,1752163853636,-460.0,0.0001726,2]
[370927685,1752163853646,-460.0,0.0001726,2]
[370927686,1752163853655,-460.0,0.0001726,2]
[370927687,1752163853664,-47.85216595,0.0001726,2]
[370927688,1752163853854,-412.14783405,0.0001726,2]
[370927689,1752163853864,-398.49371169,0.0001726,2]
[370927690,1752163853873,-524.09744431,0.0001726,2]
[370927691,1752163853882,-460.0,0.0001726,2]
[370927692,1752163853891,-591.30538433,0.0001726,2]
[370927693,1752163853901,-460.0,0.0001726,2]
[370927694,1752163853911,-460.0,0.0001726,2]
[370927695,1752163853920,-460.0,0.0001726,2]
[370927696,1752163853930,-460.0,0.0001726,2]
[370927697,1752163853939,-460.0,0.0001726,2]
[370927698,1752163853948,-460.0,0.0001726,2]
[370927699,1752163853957,-460.0,0.0001726,2]
[370927700,1752163853967,-460.0,0.0001726,2]
[370927701,1752163853977,-330.83240672,0.0001726,2]
[370927702,1752163853986,-460.0,0.0001726,2]
[370927703,1752163853996,-460.0,0.0001726,2]
[370927704,1752163854005,-460.0,0.0001726,2]
[370927705,1752163854014,-460.0,0.0001726,2]
[370927706,1752163854024,-460.0,0.0001726,2]
[370927707,1752163854033,-460.0,0.0001726,2]
[370927708,1752163854042,-460.0,0.0001726,2]
[370927709,1752163854053,-545.71,0.0001726,2]
[370927710,1752163854062,-460.0,0.0001726,2]
[370927711,1752163854072,-460.0,0.0001726,2]
[370927712,1752163854081,-592.61,0.0001726,2]
[370927713,1752163854091,-460.0,0.0001726,2]
[370927714,1752163854100,-460.0,0.0001726,2]
[370927715,1752163854110,-460.0,0.0001726,2]
[370927716,1752163854120,-460.0,0.0001726,2]
[370927717,1752163854129,-460.0,0.0001726,2]
[370927718,1752163854138,-460.0,0.0001726,2]
[370927719,1752163854148,-460.0,0.0001726,2]
[370927720,1752163854157,-591.97,0.0001726,2]
[370927721,1752163854167,-460.0,0.0001726,2]
[370927722,1752163854177,-460.0,0.0001726,2]
[370927723,1752163854187,-563.25,0.0001726,2]
[370927724,1752163854197,-483.27,0.0001726,2]
[370927725,1752163854207,-460.0,0.0001726,2]
[370927726,1752163854216,-939.57,0.0001726,2]
[370927727,1752163854225,-460.0,0.0001726,2]
[370927728,1752163854235,-460.0,0.0001726,2]
[370927729,1752163854244,-460.0,0.0001726,2]
[370927730,1752163854254,-460.0,0.0001726,2]
[370927731,1752163854263,-460.0,0.0001726,2]
[370927732,1752163854272,-460.0,0.0001726,2]
[370927733,1752163854282,-460.0,0.0001726,2]
[370927734,1752163854291,-460.0,0.0001726,2]
[370927735,1752163854301,-155.04150344,0.0001726,2]
[370927736,1752163854310,-751.31,0.0001726,2]
[370927737,1752163854320,-932.08,0.0001726,2]
[370927738,1752163854329,-460.0,0.0001726,2]
[370927739,1752163854339,-576.58,0.0001726,2]
[370927740,1752163854503,-1148.05,0.0001726,2]
[370927741,1752163854513,-460.0,0.0001726,2]